bitfinex/quotes_SOLUSD_20241107
["timestamp","ask_amount","ask_price","bid_price","bid_amount"]
[1731021285441,16.37179664,194.86,194.85,0.1]
[1731021285644,0.5800606,194.86,194.85,0.1]
[1731021286031,0.5800606,194.86,194.85,15.89173604]
[1731021286752,0.5800606,194.86,194.85,36.01722604]
[1731021287654,0.5800606,194.86,194.85,36.11722604]
[1731021288642,0.5800606,194.86,194.85,36.01722604]
[1731021289456,0.5800606,194.86,194.85,0.22549]
[1731021289632,0.5800606,194.86,194.85,36.01722604]
[1731021291746,0.5800606,194.86,194.85,35.89173604]
[1731021292452,0.5800606,194.86,194.85,0.1]
[1731021292648,0.5800606,194.86,194.85,15.89173604]
[1731021295349,0.5800606,194.86,194.85,35.99173604]
[1731021296563,0.5800606,194.86,194.85,59.99411004]
[1731021298141,0.5800606,194.86,194.85,44.202374]
[1731021298447,0.5800606,194.86,194.85,59.99411004]
[1731021299449,3.09862,194.87,194.86,59.569274]
[1731021299746,3.09862,194.87,194.86,75.36101004]
[1731021302074,15.79173604,195.05,195.04,0.1]
[1731021302360,6.7083606,195.06,194.95,0.32549]
[1731021302361,22.50009664,195.06,195.05,0.1]
[1731021302939,22.50009664,195.06,195.02,0.1]
[1731021303141,22.50009664,195.06,194.92,16.7599]
[1731021303142,15.79173604,195.03,195.01,0.1]
[1731021303347,15.79173604,195.02,195.0,0.1]
[1731021303546,15.79173604,195.01,194.99,0.1]
[1731021303840,15.79173604,195.0,194.99,0.1]
[1731021304040,15.79173604,195.01,194.99,0.1]
[1731021304255,35.79173604,195.02,195.01,0.1]
[1731021304465,35.79173604,195.05,195.04,0.1]
[1731021304663,6.7083606,195.06,195.05,0.1]
[1731021304664,0.5800606,195.06,195.05,0.1]
[1731021305642,0.5800606,195.06,195.05,15.89173604]
[1731021305855,0.5800606,195.06,195.05,0.1]
[1731021306071,0.5800606,195.06,195.05,15.89173604]
[1731021306774,0.5800606,195.06,195.05,0.1]
[1731021307147,16.37179664,195.06,195.05,0.1]
[1731021307868,20.0,195.05,195.04,0.1]
[1731021308167,35.79173604,195.05,195.04,0.1]
[1731021310066,35.79173604,195.05,195.02,0.1]
[1731021310363,35.79173604,195.05,194.95,15.79173604]
[1731021310364,35.79173604,195.03,195.0,0.1]
[1731021310570,15.79173604,195.01,194.99,0.1]
[1731021310869,15.79173604,195.0,194.99,0.1]
[1731021315273,15.79173604,195.01,194.99,0.1]
[1731021315483,15.79173604,195.03,195.02,0.1]
[1731021315962,15.79173604,195.04,195.02,0.1]
[1731021316155,15.79173604,195.04,195.03,0.1]
[1731021316556,21.13550028,195.04,195.03,0.1]
[1731021317054,21.13550028,195.04,195.02,0.1]
[1731021317250,15.79173604,195.03,195.02,0.1]
[1731021317974,15.79173604,195.03,195.01,0.1]
[1731021318162,15.79173604,195.02,195.0,0.1]
[1731021318367,15.79173604,195.01,195.0,0.1]
[1731021318563,15.79173604,195.01,194.99,0.1]
[1731021318564,20.0,195.0,194.99,0.1]
[1731021318764,35.79173604,195.0,194.99,0.1]
[1731021319765,15.79173604,195.0,194.98,0.1]
[1731021319971,15.79173604,194.99,194.98,0.1]
[1731021322889,15.79173604,195.03,195.01,0.1]
[1731021323064,21.13550028,195.04,195.03,0.1]
[1731021323380,5.34376424,195.04,195.03,0.1]
[1731021323589,0.5800606,195.06,195.03,0.1]
[1731021324778,0.5800606,195.06,195.05,0.1]
[1731021325373,16.37179664,195.06,195.05,0.1]
[1731021328485,0.12549,195.05,195.0,0.1]
[1731021328698,20.0,195.05,195.02,0.1]
[1731021328985,20.0,195.05,195.04,0.1]
[1731021329184,0.5800606,195.06,195.04,0.1]
[1731021329766,0.5800606,195.06,195.05,0.1]
[1731021330114,0.5800606,195.06,194.97,15.79173604]
[1731021330115,0.5800606,195.06,195.04,0.1]
[1731021330463,0.5800606,195.06,195.05,0.1]
[1731021330665,16.37179664,195.06,195.05,0.1]
[1731021331065,36.37179664,195.06,195.05,0.1]
[1731021331267,16.37179664,195.06,195.05,0.1]
[1731021331475,0.5800606,195.06,195.05,0.1]
[1731021335684,0.5800606,195.06,195.05,35.99173604]
[1731021336294,0.5800606,195.06,195.05,59.99411004]
[1731021336604,0.5800606,195.06,195.05,59.89411004]
[1731021336989,0.5800606,195.06,195.05,59.99411004]
[1731021337299,0.5800606,195.06,195.05,59.89411004]
[1731021337483,0.5800606,195.06,195.05,59.99411004]
[1731021338915,0.5800606,195.06,195.05,44.102374]
[1731021339085,0.5800606,195.06,195.05,59.89411004]
[1731021339780,0.5800606,195.06,195.05,59.79411004]
[1731021339985,0.5800606,195.06,195.05,59.89411004]
[1731021340395,0.5800606,195.06,195.05,59.79411004]
[1731021340593,0.5800606,195.06,195.05,59.89411004]
[1731021340795,0.5800606,195.06,195.05,59.79411004]
[1731021341006,0.5800606,195.06,195.05,59.69411004]
[1731021341403,0.5800606,195.06,195.05,59.89411004]
[1731021343508,0.5800606,195.06,195.05,59.79411004]
[1731021343702,0.5800606,195.06,195.05,59.89411004]
[1731021343886,0.5800606,195.06,195.05,59.79411004]
[1731021345413,0.5800606,195.06,195.05,59.89411004]
[1731021346212,0.5800606,195.06,195.05,59.79411004]
[1731021346383,0.5800606,195.06,195.05,59.89411004]
[1731021352108,0.5800606,195.06,195.05,59.79411004]
[1731021352421,0.5800606,195.06,195.05,59.69411004]
[1731021352721,0.5800606,195.06,195.05,35.79173604]
[1731021354019,0.5800606,195.06,195.05,35.89173604]
[1731021354322,0.5800606,195.06,195.05,35.79173604]
[1731021355106,0.5800606,195.06,195.05,59.89411004]
[1731021355325,0.5800606,195.06,195.05,59.79411004]
[1731021355619,0.5800606,195.06,195.05,59.56862004]
[1731021355799,0.5800606,195.06,195.05,35.79173604]
[1731021357729,0.5800606,195.06,195.05,59.79411004]
[1731021357930,0.5800606,195.06,195.05,59.89411004]
[1731021360231,5.33907286,195.17,195.09,0.22549]
[1731021360531,15.79173604,195.18,195.12,15.79173604]
[1731021361011,6.2891,195.2,195.16,15.79173604]
[1731021361210,36.45613805,195.22,195.18,15.79173604]
[1731021361211,15.3258,195.22,195.18,15.79173604]
[1731021362314,31.11753604,195.22,195.16,15.79173604]
[1731021363233,31.11753604,195.22,195.17,15.79173604]
[1731021363530,15.3258,195.22,195.17,15.79173604]
[1731021363728,31.11753604,195.22,195.16,15.79173604]
[1731021364328,15.79173604,195.21,195.16,15.79173604]
[1731021364509,15.79173604,195.19,195.14,15.79173604]
[1731021365138,15.79173604,195.2,195.15,15.79173604]
[1731021365337,15.79173604,195.19,195.13,15.79173604]
[1731021365535,15.79173604,195.21,195.16,15.79173604]
[1731021365827,15.79173604,195.2,195.14,15.79173604]
[1731021366020,15.79173604,195.2,195.15,15.79173604]
[1731021368331,15.79173604,195.21,195.15,15.79173604]
[1731021368727,31.11753604,195.22,195.16,15.79173604]
[1731021369229,15.79173604,195.21,195.16,15.79173604]
[1731021369609,15.79173604,195.19,195.14,15.79173604]
[1731021370028,15.79173604,195.17,195.09,20.0]
[1731021370230,15.79173604,195.15,195.09,15.79173604]
[1731021370431,15.79173604,195.2,195.09,15.79173604]
[1731021370432,15.79173604,195.14,195.09,15.79173604]
[1731021370733,15.79173604,195.12,195.06,15.79173604]
[1731021371309,15.79173604,195.1,195.04,15.79173604]
[1731021371517,15.79173604,195.08,195.02,15.79173604]
[1731021372126,20.34563357,195.14,195.01,15.79173604]
[1731021372127,15.79173604,195.07,195.01,15.79173604]
[1731021372426,15.79173604,195.07,194.97,15.79173604]
[1731021372427,15.79173604,195.03,194.97,15.79173604]
[1731021372627,15.79173604,195.03,194.97,15.89173604]
[1731021372934,15.79173604,195.04,194.98,15.79173604]
[1731021373132,15.79173604,195.06,195.0,15.79173604]
[1731021373428,15.79173604,195.06,195.01,15.79173604]
[1731021373627,20.44563357,195.14,194.95,15.75280718]
[1731021373628,15.79173604,195.08,195.02,15.79173604]
[1731021373835,15.79173604,195.11,195.05,15.79173604]
[1731021374334,15.79173604,195.1,195.04,15.79173604]
[1731021376741,15.79173604,195.1,195.05,15.79173604]
[1731021377126,15.79173604,195.06,195.0,15.79173604]
[1731021377656,15.79173604,195.04,194.98,15.79173604]
[1731021377830,15.79173604,195.02,194.97,15.79173604]
[1731021378027,15.79173604,195.03,194.97,15.79173604]
[1731021378240,15.79173604,195.01,194.95,15.79173604]
[1731021378845,15.79173604,195.0,194.94,15.79173604]
[1731021379239,15.79173604,195.01,194.95,15.79173604]
[1731021380937,15.79173604,195.02,194.96,15.79173604]
[1731021381550,15.79173604,195.02,194.97,15.79173604]
[1731021382438,15.79173604,195.02,194.96,15.79173604]
[1731021383956,15.79173604,195.04,194.99,15.79173604]
[1731021384249,15.79173604,195.0,194.94,15.79173604]
[1731021384437,15.79173604,195.0,194.89,0.1]
[1731021384438,15.79173604,194.97,194.91,15.79173604]
[1731021384646,21.41971641,195.05,194.9,15.79173604]
[1731021384647,15.79173604,194.96,194.9,15.79173604]
[1731021385051,15.79173604,194.98,194.92,15.79173604]
[1731021385243,15.79173604,195.0,194.94,15.79173604]
[1731021385547,21.31971641,195.05,194.95,15.79173604]
[1731021385548,15.79173604,195.01,194.95,15.79173604]
[1731021385741,15.79173604,195.02,194.96,15.79173604]
[1731021385954,15.79173604,195.02,194.91,0.2]
[1731021385955,15.79173604,195.03,194.97,15.79173604]
[1731021386259,15.79173604,195.02,194.96,15.79173604]
[1731021386759,15.79173604,195.03,194.97,15.79173604]
[1731021387640,37.11145245,195.05,194.99,15.79173604]
[1731021388753,15.79173604,195.04,194.98,15.79173604]
[1731021388967,15.79173604,195.04,194.99,15.79173604]
[1731021389651,5.34291641,195.05,195.01,15.79173604]
[1731021389848,15.79173604,195.06,195.0,15.79173604]
[1731021390047,15.79173604,195.05,194.99,15.79173604]
[1731021390245,15.79173604,195.03,194.97,15.79173604]
[1731021390450,5.34131203,195.07,194.96,0.12549]
[1731021390758,5.34131203,195.07,194.96,0.22549]
[1731021390960,5.34131203,195.07,194.96,20.22549]
[1731021391357,21.13304807,195.07,195.01,15.79173604]
[1731021393366,15.79173604,195.05,194.99,15.79173604]
[1731021393742,15.79173604,195.04,194.98,15.79173604]
[1731021394464,15.79173604,195.03,194.97,15.79173604]
[1731021397373,5.34131203,195.07,195.0,15.79173604]
[1731021397571,15.79173604,195.06,195.0,15.79173604]
[1731021398956,5.34131203,195.07,194.85,16.2011]
[1731021398957,16.5424,194.99,194.85,16.2011]
[1731021399270,15.79173604,194.92,194.86,15.79173604]
[1731021399466,15.79173604,194.92,194.85,15.79173604]
[1731021399662,15.79173604,194.95,194.89,15.79173604]
[1731021399849,15.79173604,194.94,194.88,15.79173604]
[1731021400049,15.79173604,194.93,194.87,15.79173604]
[1731021400254,15.79173604,194.94,194.88,15.79173604]
[1731021400852,15.79173604,194.95,194.89,15.79173604]
[1731021401953,15.79173604,194.93,194.87,15.79173604]
[1731021402572,15.79173604,194.94,194.88,15.79173604]
[1731021402877,15.79173604,194.93,194.87,15.79173604]
[1731021403873,15.79173604,194.95,194.89,15.79173604]
[1731021404571,5.33736461,194.97,194.92,15.79173604]
[1731021404960,5.33736461,194.97,194.93,15.79173604]
[1731021405381,32.33413604,194.99,194.93,15.79173604]
[1731021405561,15.79173604,194.98,194.92,15.79173604]
[1731021406466,37.67020576,194.99,194.93,15.79173604]
[1731021406672,21.87846972,194.99,194.94,15.79173604]
[1731021406972,21.87846972,194.99,194.88,0.2]
[1731021407175,15.79173604,195.03,194.97,15.79173604]
[1731021407553,5.34291474,195.02,194.97,15.79173604]
[1731021407759,15.4811,195.04,194.99,15.79173604]
[1731021408068,6.4855,195.05,195.0,15.79173604]
[1731021408256,22.27723604,195.05,194.95,0.22549]
[1731021408455,22.27723604,195.05,194.99,15.79173604]
[1731021408682,6.4855,195.05,195.0,15.79173604]
[1731021409158,6.4855,195.05,194.95,0.1]
[1731021409361,15.066,195.09,195.03,15.79173604]
[1731021409571,30.85773604,195.09,195.03,15.79173604]
[1731021409776,30.85773604,195.09,195.04,15.79173604]
[1731021409956,27.61850839,195.1,195.04,15.79173604]
[1731021411457,15.79173604,195.09,195.03,15.79173604]
[1731021412285,15.79173604,195.05,195.0,15.79173604]
[1731021412458,27.61850839,195.1,195.01,15.79173604]
[1731021412459,15.79173604,195.06,195.01,15.79173604]
[1731021413978,15.79173604,195.09,195.03,15.79173604]
[1731021414154,15.79173604,195.09,194.98,23.902374]
[1731021414155,5.34127235,195.1,195.07,15.79173604]
[1731021414361,15.79173604,195.12,195.06,15.79173604]
[1731021414562,16.1054,195.13,195.03,20.12549]
[1731021414765,15.79173604,195.1,195.02,23.776884]
[1731021415078,15.79173604,195.09,195.03,15.79173604]
[1731021415378,15.79173604,195.06,195.01,15.79173604]
[1731021415566,15.79173604,195.06,195.0,15.79173604]
[1731021416880,15.79173604,195.07,195.02,15.79173604]
[1731021417960,15.79173604,195.07,195.01,15.79173604]
[1731021418268,15.79173604,195.06,195.0,15.79173604]
[1731021420860,15.79173604,194.99,194.93,15.79173604]
[1731021421062,15.79173604,194.98,194.92,15.79173604]
[1731021421266,15.79173604,194.98,194.93,20.0]
[1731021421465,15.79173604,194.99,194.94,15.79173604]
[1731021421763,15.79173604,195.0,194.95,15.79173604]
[1731021421968,15.79173604,195.01,194.95,15.79173604]
[1731021422178,15.79173604,195.02,194.96,15.79173604]
[1731021422554,15.79173604,195.01,194.95,15.79173604]
[1731021423366,15.79173604,194.98,194.93,23.776884]
[1731021423567,15.79173604,194.98,194.91,0.12549]
[1731021423568,15.79173604,194.97,194.92,20.0]
[1731021424663,15.79173604,194.95,194.89,30.89463604]
[1731021424865,15.79173604,194.95,194.9,20.0]
[1731021425063,15.79173604,194.96,194.91,15.79173604]
[1731021425262,5.34137582,195.02,194.92,15.79173604]
[1731021425263,15.79173604,194.98,194.92,15.79173604]
[1731021425575,15.79173604,195.01,194.95,15.79173604]
[1731021425762,5.34137582,195.02,194.9,35.89173604]
[1731021425763,21.13311186,195.02,194.96,15.79173604]
[1731021425963,15.79173604,195.03,194.97,15.79173604]
[1731021426286,15.79173604,195.02,194.96,15.79173604]
[1731021428365,42.46268159,195.05,194.99,15.79173604]
[1731021428562,37.12093604,195.05,194.99,15.79173604]
[1731021428960,15.79173604,195.06,195.0,15.79173604]
[1731021429194,21.4089,195.1,194.93,16.1716]
[1731021429195,21.4089,195.1,195.04,15.79173604]
[1731021429364,15.79173604,195.06,195.0,15.79173604]
[1731021429564,15.79173604,195.04,195.0,20.0]
[1731021429765,15.79173604,195.05,195.0,20.0]
[1731021429962,15.79173604,195.05,194.98,20.0]
[1731021430167,15.79173604,195.05,195.0,15.79173604]
[1731021430374,15.79173604,195.05,194.99,15.79173604]
[1731021430574,15.79173604,195.03,194.98,15.79173604]
[1731021430985,42.64089417,195.1,194.93,15.9716]
[1731021430986,15.79173604,195.05,194.99,15.79173604]
[1731021431771,15.79173604,195.05,194.94,0.12549]
[1731021431772,15.79173604,195.03,194.94,0.12549]
[1731021431975,15.79173604,195.01,194.95,39.56862004]
[1731021432166,15.79173604,194.98,194.92,15.79173604]
[1731021432376,20.0,195.09,194.88,15.5336]
[1731021432377,15.79173604,194.96,194.9,15.79173604]
[1731021432576,21.7685,195.01,194.89,15.79173604]
[1731021432577,15.79173604,194.95,194.89,15.79173604]
[1731021432872,15.79173604,194.96,194.91,15.79173604]
[1731021433078,15.79173604,194.97,194.91,15.79173604]
[1731021433579,15.79173604,194.96,194.9,15.79173604]
[1731021433884,15.79173604,194.96,194.91,15.79173604]
[1731021434271,15.79173604,194.97,194.92,15.79173604]
[1731021434470,15.79173604,194.99,194.94,15.79173604]
[1731021434671,37.56023604,195.01,194.95,15.79173604]
[1731021434987,15.79173604,194.97,194.91,15.79173604]
[1731021435384,15.79173604,194.96,194.9,35.79173604]
[1731021435564,15.79173604,194.96,194.9,15.79173604]
[1731021435875,15.79173604,194.95,194.89,35.79173604]
[1731021436077,15.79173604,194.98,194.92,15.79173604]
[1731021436584,15.79173604,194.96,194.91,15.79173604]
[1731021437490,15.79173604,194.99,194.94,15.79173604]
[1731021438304,20.0,194.93,194.78,15.0889]
[1731021438585,15.79173604,194.87,194.81,15.79173604]
[1731021439589,15.79173604,194.88,194.82,15.79173604]
[1731021439894,15.79173604,194.89,194.83,15.79173604]
[1731021440691,15.79173604,194.88,194.82,15.79173604]
[1731021440891,20.0,194.93,194.79,15.79173604]
[1731021440892,15.79173604,194.85,194.79,15.79173604]
[1731021441267,15.79173604,194.86,194.8,15.79173604]
[1731021441881,15.79173604,194.83,194.77,15.79173604]
[1731021442066,15.79173604,194.84,194.78,15.79173604]
[1731021442672,15.79173604,194.87,194.81,15.79173604]
[1731021443466,15.79173604,194.86,194.81,15.79173604]
[1731021443663,15.79173604,194.84,194.78,15.79173604]
[1731021443864,15.79173604,194.82,194.76,15.79173604]
[1731021444566,15.79173604,194.83,194.77,15.79173604]
[1731021444782,15.79173604,194.88,194.82,15.79173604]
[1731021444990,15.79173604,194.88,194.74,0.12549]
[1731021444991,15.79173604,194.88,194.83,15.79173604]
[1731021445491,15.79173604,194.88,194.74,0.32549]
[1731021445492,15.79173604,194.9,194.84,15.79173604]
[1731021445674,21.1302319,194.91,194.85,15.79173604]
[1731021445869,5.33849586,194.91,194.86,15.79173604]
[1731021446184,15.79173604,194.92,194.86,15.79173604]
[1731021446403,5.34303892,194.92,194.87,15.79173604]
[1731021446579,15.79173604,194.93,194.87,15.79173604]
[1731021446778,35.79173604,194.92,194.86,15.79173604]
[1731021447175,15.79173604,194.9,194.85,15.79173604]
[1731021447380,15.79173604,194.9,194.81,23.902374]
[1731021447381,25.25726413,194.89,194.83,25.25726413]
[1731021447579,25.25726413,194.9,194.84,25.25726413]
[1731021447780,25.25726413,194.91,194.85,25.25726413]
[1731021448003,20.0,194.92,194.87,25.25726413]
[1731021448300,20.0,194.92,194.88,25.25726413]
[1731021448476,23.0132,194.94,194.89,25.25726413]
[1731021448675,53.61201948,194.94,194.89,25.25726413]
[1731021448886,25.25726413,194.93,194.87,25.25726413]
[1731021449101,48.27046413,194.94,194.88,25.25726413]
[1731021449474,25.25726413,194.95,194.89,25.25726413]
[1731021449699,25.25726413,194.95,194.83,23.902374]
[1731021449700,25.25726413,194.95,194.9,25.25726413]
[1731021450073,25.25726413,194.97,194.91,25.25726413]
[1731021450575,30.59942403,194.97,194.91,25.25726413]
[1731021450795,30.59942403,194.97,194.93,25.25726413]
[1731021450796,5.3421599,194.97,194.93,25.25726413]
[1731021450983,46.91496413,194.99,194.93,25.25726413]
[1731021452291,20.0,194.98,194.93,25.25726413]
[1731021452885,46.91496413,194.99,194.93,25.25726413]
[1731021453084,25.25726413,194.98,194.93,25.25726413]
[1731021453698,46.91496413,194.99,194.94,25.25726413]
[1731021453901,25.25726413,195.01,194.95,25.25726413]
[1731021454112,21.9346,195.04,194.9,25.25726413]
[1731021454113,25.25726413,195.02,194.97,25.25726413]
[1731021454402,25.25726413,195.03,194.98,25.25726413]
[1731021454580,25.25726413,195.03,194.97,25.25726413]
[1731021455306,20.0,195.02,194.97,25.25726413]
[1731021455804,25.25726413,195.02,194.97,25.25726413]
[1731021456302,25.25726413,195.04,194.98,25.25726413]
[1731021456507,25.25726413,195.06,195.0,25.25726413]
[1731021456797,25.25726413,195.05,194.99,25.25726413]
[1731021457484,25.25726413,195.06,195.0,25.25726413]
[1731021458404,25.25726413,195.07,195.01,25.25726413]
[1731021458999,25.25726413,195.06,195.01,25.25726413]
[1731021459181,25.25726413,195.04,194.98,25.25726413]
[1731021459508,25.25726413,195.02,194.94,20.0]
[1731021459687,25.25726413,194.97,194.94,20.0]
[1731021459896,0.2,195.07,194.94,20.0]
[1731021459897,16.2534,195.03,194.94,20.0]
[1731021460088,16.2534,195.03,194.93,20.0]
[1731021460287,25.25726413,194.98,194.93,20.0]
[1731021460499,25.25726413,194.98,194.92,40.42266413]
[1731021460688,25.25726413,194.96,194.91,25.25726413]
[1731021461088,25.25726413,194.98,194.92,25.25726413]
[1731021461804,25.25726413,194.96,194.9,25.38275413]
[1731021462001,25.25726413,194.98,194.92,25.25726413]
[1731021463006,25.25726413,195.0,194.95,25.25726413]
[1731021463388,25.25726413,195.01,194.95,25.25726413]
[1731021464504,25.25726413,195.0,194.95,25.25726413]
[1731021464685,25.25726413,195.0,194.94,25.25726413]
[1731021464886,25.25726413,194.98,194.92,25.25726413]
[1731021465087,25.25726413,194.98,194.93,25.25726413]
[1731021465584,25.25726413,194.97,194.91,25.25726413]
[1731021465781,16.2534,195.03,194.91,25.25726413]
[1731021465782,25.25726413,194.96,194.91,25.25726413]
[1731021465982,16.2534,195.03,194.88,25.25726413]
[1731021465983,25.25726413,194.94,194.88,25.25726413]
[1731021466378,25.25726413,194.96,194.9,25.25726413]
[1731021466578,25.25726413,194.96,194.91,25.25726413]
[1731021467081,25.25726413,194.97,194.91,25.25726413]
[1731021467301,25.25726413,194.98,194.92,25.25726413]
[1731021467489,25.25726413,194.97,194.91,25.25726413]
[1731021468203,25.25726413,194.94,194.83,20.0]
[1731021468408,25.25726413,194.92,194.88,20.0]
[1731021468703,25.25726413,194.92,194.86,25.25726413]
[1731021469508,25.25726413,194.91,194.85,25.25726413]
[1731021470193,25.25726413,194.91,194.86,20.0]
[1731021471088,25.25726413,194.92,194.86,25.25726413]
[1731021471784,25.25726413,194.92,194.85,25.25726413]
[1731021471990,25.25726413,194.92,194.86,20.0]
[1731021472701,25.25726413,194.92,194.85,25.25726413]
[1731021472702,25.25726413,194.91,194.85,20.0]
[1731021473302,15.78416361,194.91,194.85,20.0]
[1731021473605,15.78416361,194.91,194.85,35.78416361]
[1731021474500,15.78416361,194.92,194.85,35.78416361]
[1731021475116,15.78416361,194.9,194.83,15.78416361]
[1731021475294,15.78416361,194.88,194.82,32.34996361]
[1731021475818,15.78416361,194.89,194.83,15.78416361]
[1731021476510,15.78416361,194.88,194.83,20.0]
[1731021477398,15.78416361,194.88,194.82,15.78416361]
[1731021478219,15.78416361,194.88,194.82,35.78416361]
[1731021478601,15.78416361,194.89,194.83,15.78416361]
[1731021478812,15.78416361,194.84,194.76,15.78416361]
[1731021479114,6.6434,194.88,194.76,15.78416361]
[1731021479115,15.78416361,194.82,194.76,15.78416361]
[1731021479415,15.78416361,194.8,194.73,15.78416361]
[1731021479611,15.78416361,194.79,194.73,15.78416361]
[1731021479994,15.78416361,194.78,194.72,15.78416361]
[1731021480195,15.78416361,194.79,194.73,15.78416361]
[1731021480420,15.78416361,194.78,194.72,15.78416361]
[1731021480595,15.78416361,194.78,194.71,15.78416361]
[1731021480796,15.78416361,194.77,194.71,15.78416361]
[1731021481110,15.78416361,194.78,194.72,15.78416361]
[1731021481313,15.78416361,194.79,194.73,15.78416361]
[1731021481705,15.78416361,194.78,194.72,15.78416361]
[1731021481920,15.78416361,194.78,194.63,70.0]
[1731021481921,15.78416361,194.74,194.63,2.25597558]
[1731021482104,15.78416361,194.71,194.65,15.78416361]
[1731021482440,15.78416361,194.72,194.66,15.78416361]
[1731021482926,15.78416361,194.71,194.64,15.78416361]
[1731021483216,15.78416361,194.75,194.69,15.78416361]
[1731021483517,16.5214,194.76,194.62,0.22549]
[1731021483700,6.0354,194.79,194.71,25.29558747]
[1731021483896,25.29558747,194.77,194.71,25.29558747]
[1731021484317,6.0354,194.79,194.61,86.3077]
[1731021484318,6.0354,194.79,194.74,25.29558747]
[1731021484517,31.33098747,194.79,194.73,25.29558747]
[1731021484711,6.0354,194.79,194.74,25.29558747]
[1731021486013,25.29558747,194.83,194.77,25.29558747]
[1731021487415,25.29558747,194.81,194.75,25.29558747]
[1731021489211,25.29558747,194.79,194.73,25.29558747]
[1731021490221,25.29558747,194.8,194.74,25.29558747]
[1731021491522,11.96841818,194.84,194.73,25.29558747]
[1731021491523,25.29558747,194.79,194.73,25.29558747]
[1731021491731,25.29558747,194.8,194.74,25.29558747]
[1731021491910,25.29558747,194.76,194.7,25.29558747]
[1731021492231,25.29558747,194.76,194.64,29.21430429]
[1731021492232,25.29558747,194.78,194.72,25.29558747]
[1731021492943,25.29558747,194.8,194.75,25.29558747]
[1731021493234,25.29558747,194.82,194.76,25.29558747]
[1731021493429,25.29558747,194.83,194.77,25.29558747]
[1731021493639,37.26400565,194.84,194.78,25.29558747]
[1731021496137,25.29558747,194.85,194.79,25.29558747]
[1731021496436,16.1536,194.86,194.77,25.29558747]
[1731021496437,25.29558747,194.83,194.77,25.29558747]
[1731021496611,25.29558747,194.83,194.77,45.29558747]
[1731021498030,25.29558747,194.84,194.78,25.29558747]
[1731021498244,25.29558747,194.85,194.79,25.29558747]
[1731021498840,25.29558747,194.84,194.78,25.29558747]
[1731021499046,25.29558747,194.85,194.79,25.29558747]
[1731021500535,25.29558747,194.87,194.82,25.29558747]
[1731021500712,25.29558747,194.87,194.81,25.29558747]
[1731021501037,25.29558747,194.86,194.8,25.29558747]
[1731021501338,25.29558747,194.87,194.81,25.29558747]
[1731021501840,25.29558747,194.86,194.8,25.29558747]
[1731021502722,25.29558747,194.82,194.78,20.0]
[1731021502930,25.29558747,194.81,194.74,25.29558747]
[1731021503118,0.12549,194.87,194.71,15.8659]
[1731021503119,25.29558747,194.78,194.72,25.29558747]
[1731021503330,15.80425263,194.78,194.72,15.80425263]
[1731021503511,15.5147,194.81,194.66,15.3098]
[1731021504325,6.4441,194.79,194.66,15.3098]
[1731021504633,15.80425263,194.73,194.67,15.80425263]
[1731021504844,15.80425263,194.72,194.65,15.80425263]
[1731021505023,15.80425263,194.69,194.63,15.80425263]
[1731021505416,15.80425263,194.66,194.6,15.80425263]
[1731021505738,15.80425263,194.7,194.64,15.80425263]
[1731021506235,15.80425263,194.69,194.63,15.80425263]
[1731021506620,15.80425263,194.68,194.63,20.0]
[1731021506812,15.80425263,194.69,194.63,15.80425263]
[1731021507422,25.31054661,194.69,194.63,25.31054661]
[1731021508233,25.31054661,194.69,194.58,23.776884]
[1731021508234,25.31054661,194.7,194.64,25.31054661]
[1731021509024,25.31054661,194.69,194.63,25.31054661]
[1731021509228,25.31054661,194.68,194.62,25.31054661]
[1731021509430,25.31054661,194.69,194.63,45.31054661]
[1731021509740,25.31054661,194.7,194.64,25.31054661]
[1731021509948,25.31054661,194.71,194.65,25.31054661]
[1731021510525,25.31054661,194.69,194.64,25.31054661]
[1731021510849,25.31054661,194.69,194.64,20.0]
[1731021511524,25.31054661,194.68,194.63,25.31054661]
[1731021512233,25.31054661,194.69,194.63,25.31054661]
[1731021512434,25.31054661,194.7,194.64,25.31054661]
[1731021514459,25.31054661,194.72,194.67,25.31054661]
[1731021514651,25.31054661,194.72,194.66,25.31054661]
[1731021515733,30.64462073,194.74,194.68,25.31054661]
[1731021515944,30.64462073,194.74,194.69,25.31054661]
[1731021515945,5.33407412,194.74,194.69,25.31054661]
[1731021516245,25.31054661,194.76,194.71,25.31054661]
[1731021516630,25.31054661,194.75,194.69,25.31054661]
[1731021518922,25.31054661,194.76,194.7,25.31054661]
[1731021519131,46.29673267,194.77,194.71,25.31054661]
[1731021519431,25.31054661,194.76,194.7,25.31054661]
[1731021519628,25.31054661,194.72,194.61,23.776884]
[1731021519954,25.31054661,194.7,194.64,25.31054661]
[1731021520130,25.31054661,194.69,194.63,25.31054661]
[1731021520537,25.31054661,194.67,194.61,25.31054661]
[1731021520758,25.31054661,194.66,194.6,25.31054661]